[Event "Kvibergspelen 2018"]
[Site "Prioritet Serneke Arena, Krutvagen 2, Gothenburg, Sweden"]
[Date "2018.04.20"]
[Round "2.2"]
[White "Hector, Jonny"]
[Black "Unander, Matts"]
[Result "1-0"]
[TimeControl "15 minutes + 5 seconds per move from move one (Round 1 - 4) / 90 minutes + 30 seconds per move from move one (Round 5 - 8)"]
[WhiteTitle "GM"]
[WhiteFideId "1700090"]
[BlackFideId "1701541"]
[WhiteElo "2502"]
[BlackElo "2057"]

1. e4 {[%clk 00:15:05]} {[%emt 00:00:02]} c5 {[%clk 00:15:03]} {[%emt
00:00:08]} 2. Nf3 {[%clk 00:15:08]} {[%emt 00:00:02]} e6 {[%clk 00:14:59]}
{[%emt 00:00:09]} 3. d4 {[%clk 00:15:10]} {[%emt 00:00:02]} cxd4 {[%clk
00:15:02]} {[%emt 00:00:02]} 4. Nxd4 {[%clk 00:15:13]} {[%emt 00:00:02]} Nc6
{[%clk 00:15:01]} {[%emt 00:00:07]} 5. Nc3 {[%clk 00:15:15]} {[%emt 00:00:03]}
a6 {[%clk 00:14:40]} {[%emt 00:00:27]} 6. Nxc6 {[%clk 00:15:05]} {[%emt
00:00:14]} bxc6 {[%clk 00:14:43]} {[%emt 00:00:02]} 7. Bd3 {[%clk 00:15:05]}
{[%emt 00:00:04]} d5 {[%clk 00:14:16]} {[%emt 00:00:32]} 8. Qe2 {[%clk
00:15:04]} {[%emt 00:00:06]} Nf6 {[%clk 00:14:02]} {[%emt 00:00:20]} 9. O-O
{[%clk 00:15:04]} {[%emt 00:00:04]} Be7 {[%clk 00:13:50]} {[%emt 00:00:18]} 10.
b3 {[%clk 00:14:48]} {[%emt 00:00:20]} d4 {[%clk 00:13:06]} {[%emt 00:00:49]}
11. Na4 {[%clk 00:14:30]} {[%emt 00:00:23]} e5 {[%clk 00:12:43]} {[%emt
00:00:29]} 12. c3 {[%clk 00:14:07]} {[%emt 00:00:28]} O-O {[%clk 00:11:32]}
{[%emt 00:01:17]} 13. cxd4 {[%clk 00:14:04]} {[%emt 00:00:06]} Qxd4 {[%clk
00:11:32]} {[%emt 00:00:06]} 14. Bb2 {[%clk 00:13:50]} {[%emt 00:00:20]} Qd6
{[%clk 00:11:06]} {[%emt 00:00:30]} 15. f4 {[%clk 00:13:31]} {[%emt 00:00:23]}
Nd7 {[%clk 00:10:15]} {[%emt 00:00:57]} 16. Bc4 {[%clk 00:13:09]} {[%emt
00:00:26]} Bf6 {[%clk 00:09:46]} {[%emt 00:00:35]} 17. Rad1 {[%clk 00:12:03]}
{[%emt 00:01:11]} Qc7 {[%clk 00:09:27]} {[%emt 00:00:25]} 18. Ba3 {[%clk
00:11:21]} {[%emt 00:00:46]} Re8 {[%clk 00:08:41]} {[%emt 00:00:51]} 19. Bxf7+
{[%clk 00:11:11]} {[%emt 00:00:15]} 1-0

[Event "Kvibergspelen 2018"]
[Site "Prioritet Serneke Arena, Krutvagen 2, Gothenburg, Sweden"]
[Date "2018.04.20"]
[Round "2.3"]
[White "Svensson, Leif"]
[Black "Blomqvist, Erik"]
[Result "0-1"]
[TimeControl "15 minutes + 5 seconds per move from move one (Round 1 - 4) / 90 minutes + 30 seconds per move from move one (Round 5 - 8)"]
[BlackTitle "GM"]
[WhiteFideId "1702459"]
[BlackFideId "1709437"]
[WhiteElo "2051"]
[BlackElo "2494"]

1. d4 {[%clk 00:15:09]} {[%emt 00:03:20]} Nf6 {[%clk 00:15:08]} {[%emt
00:00:02]} 2. Nc3 {[%clk 00:15:13]} {[%emt 00:00:02]} d5 {[%clk 00:15:10]}
{[%emt 00:00:03]} 3. Bg5 {[%clk 00:15:14]} {[%emt 00:00:03]} c5 {[%clk
00:15:13]} {[%emt 00:00:04]} 4. Bxf6 {[%clk 00:15:07]} {[%emt 00:00:11]} gxf6
{[%clk 00:15:17]} {[%emt 00:00:02]} 5. e3 {[%clk 00:15:09]} {[%emt 00:00:02]}
cxd4 {[%clk 00:15:10]} {[%emt 00:00:12]} 6. exd4 {[%clk 00:15:11]} {[%emt
00:00:02]} Nc6 {[%clk 00:15:12]} {[%emt 00:00:04]} 7. Qh5 {[%clk 00:14:57]}
{[%emt 00:00:19]} e6 {[%clk 00:15:15]} {[%emt 00:00:03]} 8. Nf3 {[%clk
00:14:57]} {[%emt 00:00:04]} Bd7 {[%clk 00:15:15]} {[%emt 00:00:06]} 9. O-O-O
{[%clk 00:12:43]} {[%emt 00:02:19]} Qa5 {[%clk 00:14:47]} {[%emt 00:00:33]} 10.
Rd3 {[%clk 00:11:59]} {[%emt 00:00:48]} Nb4 {[%clk 00:14:39]} {[%emt 00:00:14]}
11. Re3 {[%clk 00:11:58]} {[%emt 00:00:06]} Nxa2+ {[%clk 00:14:33]} {[%emt
00:00:11]} 12. Nxa2 {[%clk 00:11:57]} {[%emt 00:00:06]} Qxa2 {[%clk 00:14:35]}
{[%emt 00:00:03]} 13. Nd2 {[%clk 00:09:54]} {[%emt 00:02:07]} a5 {[%clk
00:10:57]} {[%emt 00:03:43]} 14. g3 {[%clk 00:04:59]} {[%emt 00:05:00]} Qa4
{[%clk 00:08:27]} {[%emt 00:02:36]} 15. Nb3 {[%clk 00:02:35]} {[%emt 00:02:30]}
Rc8 {[%clk 00:08:00]} {[%emt 00:00:32]} 16. Bg2 {[%clk 00:02:00]} {[%emt
00:00:40]} Qc6 {[%clk 00:06:19]} {[%emt 00:01:46]} 17. Rc3 {[%clk 00:01:58]}
{[%emt 00:00:07]} Qb6 {[%clk 00:06:15]} {[%emt 00:00:09]} 18. Rxc8+ {[%clk
00:02:00]} {[%emt 00:00:03]} Bxc8 {[%clk 00:06:19]} 19. Re1 {[%clk 00:02:03]}
{[%emt 00:00:02]} a4 {[%clk 00:05:28]} {[%emt 00:00:56]} 20. Nc5 {[%clk
00:01:58]} {[%emt 00:00:10]} Bxc5 {[%clk 00:05:24]} {[%emt 00:00:09]} 21. dxc5
{[%clk 00:02:01]} {[%emt 00:00:02]} Qxc5 {[%clk 00:05:27]} {[%emt 00:00:03]} 22.
Bxd5 {[%clk 00:01:30]} {[%emt 00:00:36]} Qxf2 {[%clk 00:05:00]} {[%emt
00:00:32]} 23. Re2 {[%clk 00:01:34]} Qg1+ {[%clk 00:05:01]} {[%emt 00:00:04]}
24. Kd2 {[%clk 00:01:34]} {[%emt 00:00:05]} Qd4+ {[%clk 00:04:55]} {[%emt
00:00:10]} 25. Kc1 {[%clk 00:01:38]} {[%emt 00:00:01]} Ke7 {[%clk 00:04:28]}
{[%emt 00:00:32]} 26. c3 {[%clk 00:01:05]} {[%emt 00:00:37]} Qg1+ {[%clk
00:04:26]} {[%emt 00:00:07]} 27. Kc2 {[%clk 00:01:10]} {[%emt 00:00:01]} Rd8
{[%clk 00:04:22]} {[%emt 00:00:09]} 28. Qf5 {[%clk 00:01:12]} {[%emt 00:00:03]}
Kf8 {[%clk 00:03:54]} {[%emt 00:00:33]} 29. Qxf6 {[%clk 00:00:33]} {[%emt
00:00:44]} Rxd5 {[%clk 00:03:57]} {[%emt 00:00:02]} 30. Qh8+ {[%clk 00:00:30]}
{[%emt 00:00:08]} Ke7 {[%clk 00:04:01]} {[%emt 00:00:01]} 31. Qxc8 {[%clk
00:00:34]} {[%emt 00:00:01]} Qd1# {[%clk 00:04:04]} {[%emt 00:00:02]} 0-1

[Event "Kvibergspelen 2018"]
[Site "Prioritet Serneke Arena, Krutvagen 2, Gothenburg, Sweden"]
[Date "2018.04.20"]
[Round "2.4"]
[White "Tikkanen, Hans"]
[Black "Andersson, Lars"]
[Result "1-0"]
[TimeControl "15 minutes + 5 seconds per move from move one (Round 1 - 4) / 90 minutes + 30 seconds per move from move one (Round 5 - 8)"]
[WhiteTitle "GM"]
[WhiteFideId "1706446"]
[BlackFideId "1706772"]
[WhiteElo "2486"]
[BlackElo "2051"]

1. d4 {[%clk 00:15:08]} {[%emt 00:00:01]} f5 {[%clk 00:15:08]} {[%emt
00:00:02]} 2. Bg5 {[%clk 00:14:57]} {[%emt 00:00:16]} g6 {[%clk 00:15:06]}
{[%emt 00:00:07]} 3. Nc3 {[%clk 00:14:15]} {[%emt 00:00:47]} Bg7 {[%clk
00:14:48]} {[%emt 00:00:23]} 4. Qd2 {[%clk 00:13:55]} {[%emt 00:00:25]} h6
{[%clk 00:14:19]} {[%emt 00:00:34]} 5. Bf4 {[%clk 00:13:43]} {[%emt 00:00:17]}
d6 {[%clk 00:12:37]} {[%emt 00:01:47]} 6. e3 {[%clk 00:12:39]} {[%emt
00:01:09]} e5 {[%clk 00:10:39]} {[%emt 00:02:03]} 7. Bg3 {[%clk 00:12:38]}
{[%emt 00:00:05]} e4 {[%clk 00:10:14]} {[%emt 00:00:30]} 8. h4 {[%clk
00:10:53]} {[%emt 00:01:50]} Nf6 {[%clk 00:09:49]} {[%emt 00:00:30]} 9. Be2
{[%clk 00:10:48]} {[%emt 00:00:10]} Be6 {[%clk 00:08:18]} {[%emt 00:01:36]} 10.
Nh3 {[%clk 00:09:20]} {[%emt 00:01:34]} O-O {[%clk 00:08:04]} {[%emt 00:00:19]}
11. f3 {[%clk 00:08:16]} {[%emt 00:01:09]} d5 {[%clk 00:06:04]} {[%emt
00:02:05]} 12. Nb5 {[%clk 00:06:30]} {[%emt 00:01:52]} Ne8 {[%clk 00:03:54]}
{[%emt 00:02:14]} 13. O-O-O {[%clk 00:05:26]} {[%emt 00:01:09]} c6 {[%clk
00:03:38]} {[%emt 00:00:22]} 14. Nc3 {[%clk 00:05:30]} {[%emt 00:00:01]} b5
{[%clk 00:03:14]} {[%emt 00:00:29]} 15. Be5 {[%clk 00:04:42]} {[%emt 00:00:53]}
Nf6 {[%clk 00:03:10]} {[%emt 00:00:09]} 16. Nf4 {[%clk 00:04:18]} {[%emt
00:00:29]} Bf7 {[%clk 00:03:12]} {[%emt 00:00:03]} 17. Rdg1 {[%clk 00:04:12]}
{[%emt 00:00:11]} Nbd7 {[%clk 00:02:34]} {[%emt 00:00:43]} 18. Bxf6 {[%clk
00:03:23]} {[%emt 00:00:54]} Nxf6 {[%clk 00:02:32]} {[%emt 00:00:08]} 19. g4
{[%clk 00:03:25]} {[%emt 00:00:02]} fxg4 {[%clk 00:01:57]} {[%emt 00:00:40]} 20.
fxg4 {[%clk 00:03:28]} {[%emt 00:00:02]} Ne8 {[%clk 00:01:50]} {[%emt
00:00:12]} 21. g5 {[%clk 00:03:10]} {[%emt 00:00:23]} h5 {[%clk 00:01:34]}
{[%emt 00:00:22]} 22. Bxh5 {[%clk 00:02:16]} {[%emt 00:00:59]} gxh5 {[%clk
00:01:37]} {[%emt 00:00:01]} 23. g6 {[%clk 00:02:19]} {[%emt 00:00:01]} Nf6
{[%clk 00:00:59]} {[%emt 00:00:44]} 24. gxf7+ {[%clk 00:02:23]} {[%emt
00:00:02]} Rxf7 {[%clk 00:01:01]} {[%emt 00:00:03]} 25. Rg5 {[%clk 00:01:36]}
{[%emt 00:00:51]} Qd7 {[%clk 00:00:26]} {[%emt 00:00:40]} 26. Rhg1 {[%clk
00:01:30]} {[%emt 00:00:12]} 1-0

[Event "Kvibergspelen 2018"]
[Site "Prioritet Serneke Arena, Krutvagen 2, Gothenburg, Sweden"]
[Date "2018.04.20"]
[Round "2.5"]
[White "Karlsson, Jorgen"]
[Black "Brynell, Stellan"]
[Result "0-1"]
[TimeControl "15 minutes + 5 seconds per move from move one (Round 1 - 4) / 90 minutes + 30 seconds per move from move one (Round 5 - 8)"]
[BlackTitle "GM"]
[WhiteFideId "1711679"]
[BlackFideId "1700219"]
[WhiteElo "2045"]
[BlackElo "2420"]

1. d4 {[%clk 00:15:07]} {[%emt 00:00:02]} Nf6 {[%clk 00:15:06]} {[%emt
00:00:05]} 2. Bf4 {[%clk 00:15:09]} {[%emt 00:00:02]} g6 {[%clk 00:14:55]}
{[%emt 00:00:15]} 3. h3 {[%clk 00:15:09]} {[%emt 00:00:05]} Bg7 {[%clk
00:14:58]} {[%emt 00:00:02]} 4. Nc3 {[%clk 00:15:09]} {[%emt 00:00:05]} d6
{[%clk 00:14:46]} {[%emt 00:00:18]} 5. Qd2 {[%clk 00:15:08]} {[%emt 00:00:07]}
Nbd7 {[%clk 00:14:32]} {[%emt 00:00:19]} 6. Nf3 {[%clk 00:15:03]} {[%emt
00:00:09]} c5 {[%clk 00:14:27]} {[%emt 00:00:10]} 7. Bh6 {[%clk 00:14:34]}
{[%emt 00:00:34]} Bxh6 {[%clk 00:12:38]} {[%emt 00:01:54]} 8. Qxh6 {[%clk
00:14:37]} {[%emt 00:00:02]} cxd4 {[%clk 00:12:20]} {[%emt 00:00:22]} 9. Nxd4
{[%clk 00:14:37]} {[%emt 00:00:05]} Qa5 {[%clk 00:12:20]} {[%emt 00:00:05]} 10.
O-O-O {[%clk 00:13:40]} {[%emt 00:01:01]} Nc5 {[%clk 00:11:54]} {[%emt
00:00:31]} 11. Qe3 {[%clk 00:12:29]} {[%emt 00:01:16]} Ne6 {[%clk 00:10:59]}
{[%emt 00:01:00]} 12. g4 {[%clk 00:12:03]} {[%emt 00:00:31]} h5 {[%clk
00:09:27]} {[%emt 00:01:38]} 13. Nb3 {[%clk 00:10:50]} {[%emt 00:01:18]} Qg5
{[%clk 00:09:09]} {[%emt 00:00:23]} 14. Qxg5 {[%clk 00:08:21]} {[%emt
00:02:34]} Nxg5 {[%clk 00:09:12]} {[%emt 00:00:02]} 15. Bg2 {[%clk 00:07:52]}
{[%emt 00:00:34]} Ne6 {[%clk 00:06:52]} {[%emt 00:02:26]} 16. Bf3 {[%clk
00:07:40]} {[%emt 00:00:17]} h4 {[%clk 00:06:05]} {[%emt 00:00:53]} 17. Nd4
{[%clk 00:07:21]} {[%emt 00:00:23]} Rb8 {[%clk 00:05:38]} {[%emt 00:00:32]} 18.
Nxe6 {[%clk 00:05:10]} {[%emt 00:02:16]} Bxe6 {[%clk 00:05:42]} {[%emt
00:00:01]} 19. Rd4 {[%clk 00:05:08]} {[%emt 00:00:06]} Kd7 {[%clk 00:03:09]}
{[%emt 00:02:38]} 20. e4 {[%clk 00:05:03]} {[%emt 00:00:10]} Rhc8 {[%clk
00:02:27]} {[%emt 00:00:47]} 21. e5 {[%emt 00:00:09]} Ne8 22. Rhd1 {[%clk
00:04:12]} {[%emt 00:00:52]} Rc4 {[%clk 00:02:35]} {[%emt 00:00:02]} 23. Rxc4
{[%clk 00:03:38]} {[%emt 00:00:38]} Bxc4 {[%clk 00:02:39]} {[%emt 00:00:01]} 24.
exd6 {[%clk 00:03:06]} {[%emt 00:00:37]} Nxd6 {[%clk 00:02:43]} {[%emt
00:00:01]} 25. b3 {[%clk 00:02:45]} {[%emt 00:00:26]} Be6 {[%clk 00:02:43]}
{[%emt 00:00:05]} 26. Ne4 {[%clk 00:02:47]} {[%emt 00:00:03]} b6 {[%clk
00:02:44]} {[%emt 00:00:05]} 27. c4 {[%clk 00:02:10]} {[%emt 00:00:41]} Kc7
{[%clk 00:02:30]} {[%emt 00:00:19]} 28. Kb2 {[%clk 00:00:35]} {[%emt 00:01:40]}
Nxe4 {[%clk 00:02:21]} {[%emt 00:00:13]} 29. Bxe4 {[%clk 00:00:39]} {[%emt
00:00:01]} g5 {[%clk 00:02:25]} {[%emt 00:00:01]} 30. Rd4 {[%clk 00:00:32]}
{[%emt 00:00:12]} f6 {[%clk 00:01:30]} {[%emt 00:00:59]} 31. Bd3 {[%clk
00:00:16]} {[%emt 00:00:23]} Rd8 {[%clk 00:01:26]} {[%emt 00:00:09]} 32. Kc3
{[%clk 00:00:17]} {[%emt 00:00:04]} Rd6 {[%clk 00:00:45]} {[%emt 00:00:46]} 33.
b4 {[%clk 00:00:15]} {[%emt 00:00:08]} Bd7 {[%clk 00:00:45]} {[%emt 00:00:04]}
34. a3 {[%clk 00:00:10]} {[%emt 00:00:10]} e5 {[%clk 00:00:19]} {[%emt
00:00:31]} 35. Rxd6 {[%clk 00:00:08]} {[%emt 00:00:07]} Kxd6 {[%clk 00:00:23]}
36. Be4 {[%clk 00:00:12]} a5 {[%clk 00:00:27]} {[%emt 00:00:02]} 37. Bg2 {[%emt
00:00:12]} 0-1

[Event "Kvibergspelen 2018"]
[Site "Prioritet Serneke Arena, Krutvagen 2, Gothenburg, Sweden"]
[Date "2018.04.20"]
[Round "2.6"]
[White "Hakansson, Stefan"]
[Black "Ernst, Thomas"]
[Result "0-1"]
[TimeControl "15 minutes + 5 seconds per move from move one (Round 1 - 4) / 90 minutes + 30 seconds per move from move one (Round 5 - 8)"]
[BlackTitle "GM"]
[WhiteFideId "1708198"]
[BlackFideId "1700065"]
[WhiteElo "2029"]
[BlackElo "2366"]

1. d4 {[%clk 00:15:06]} {[%emt 00:00:02]} Nf6 {[%clk 00:15:09]} {[%emt
00:00:02]} 2. Bg5 {[%clk 00:15:09]} {[%emt 00:00:01]} Ne4 {[%clk 00:15:12]}
{[%emt 00:00:02]} 3. Bf4 {[%clk 00:15:13]} {[%emt 00:00:01]} c5 {[%clk
00:15:15]} {[%emt 00:00:03]} 4. d5 {[%clk 00:15:11]} {[%emt 00:00:07]} Qb6
{[%clk 00:15:10]} {[%emt 00:00:09]} 5. Qc1 {[%clk 00:11:44]} {[%emt 00:03:31]}
g6 {[%clk 00:13:40]} {[%emt 00:01:36]} 6. f3 {[%clk 00:11:15]} {[%emt
00:00:34]} Bg7 {[%clk 00:13:08]} {[%emt 00:00:37]} 7. c3 {[%clk 00:11:15]}
{[%emt 00:00:04]} Nf6 {[%clk 00:13:06]} {[%emt 00:00:08]} 8. e4 {[%clk
00:11:06]} {[%emt 00:00:14]} d6 {[%clk 00:12:51]} {[%emt 00:00:21]} 9. Nd2
{[%clk 00:10:43]} {[%emt 00:00:27]} e5 {[%clk 00:12:47]} {[%emt 00:00:10]} 10.
Nc4 {[%clk 00:10:10]} {[%emt 00:00:37]} Qd8 {[%clk 00:12:36]} {[%emt 00:00:16]}
11. Bh6 {[%clk 00:07:57]} {[%emt 00:02:18]} O-O {[%clk 00:12:37]} {[%emt
00:00:05]} 12. Bxg7 {[%clk 00:08:00]} {[%emt 00:00:02]} Kxg7 {[%clk 00:12:41]}
{[%emt 00:00:02]} 13. Bd3 {[%clk 00:07:53]} {[%emt 00:00:12]} b5 {[%clk
00:12:32]} {[%emt 00:00:13]} 14. Ne3 {[%clk 00:07:56]} {[%emt 00:00:02]} c4
{[%clk 00:12:34]} {[%emt 00:00:04]} 15. Bc2 {[%clk 00:07:56]} {[%emt 00:00:03]}
Nbd7 {[%clk 00:12:17]} {[%emt 00:00:23]} 16. a4 {[%clk 00:07:57]} {[%emt
00:00:05]} Nb6 {[%clk 00:12:16]} {[%emt 00:00:06]} 17. axb5 {[%clk 00:06:59]}
{[%emt 00:01:04]} Bd7 {[%clk 00:12:17]} {[%emt 00:00:03]} 18. Ne2 {[%clk
00:07:03]} Bxb5 {[%clk 00:12:19]} {[%emt 00:00:03]} 19. O-O {[%clk 00:07:05]}
{[%emt 00:00:02]} Qe7 {[%clk 00:11:18]} {[%emt 00:01:06]} 20. Ng3 {[%clk
00:07:07]} {[%emt 00:00:03]} Bd7 {[%clk 00:11:00]} {[%emt 00:00:23]} 21. Qd2
{[%clk 00:07:00]} {[%emt 00:00:12]} Kh8 {[%clk 00:10:51]} {[%emt 00:00:14]} 22.
Qe2 {[%clk 00:06:13]} {[%emt 00:00:52]} Bb5 {[%clk 00:10:50]} {[%emt 00:00:06]}
23. Qf2 {[%clk 00:05:30]} {[%emt 00:00:48]} Nfd7 {[%clk 00:10:34]} {[%emt
00:00:21]} 24. f4 {[%clk 00:04:48]} {[%emt 00:00:48]} exf4 {[%clk 00:09:50]}
{[%emt 00:00:49]} 25. Qxf4 {[%clk 00:04:51]} {[%emt 00:00:02]} Ne5 {[%clk
00:09:44]} {[%emt 00:00:11]} 26. Ng4 {[%clk 00:04:10]} {[%emt 00:00:46]} f6
{[%clk 00:09:20]} {[%emt 00:00:29]} 27. Nxe5 {[%clk 00:04:06]} {[%emt
00:00:09]} fxe5 {[%clk 00:09:22]} {[%emt 00:00:03]} 28. Qe3 {[%clk 00:04:09]}
{[%emt 00:00:03]} Kg7 {[%clk 00:08:28]} {[%emt 00:00:58]} 29. Rxf8 {[%clk
00:03:51]} {[%emt 00:00:24]} Kxf8 {[%clk 00:06:56]} {[%emt 00:01:36]} 30. Qh6+
{[%clk 00:02:57]} {[%emt 00:01:00]} Kg8 {[%clk 00:06:59]} {[%emt 00:00:02]} 31.
Rf1 {[%clk 00:02:35]} {[%emt 00:00:26]} Rf8 {[%clk 00:06:52]} {[%emt 00:00:12]}
32. Rxf8+ {[%clk 00:02:37]} {[%emt 00:00:04]} Qxf8 {[%clk 00:06:56]} {[%emt
00:00:02]} 33. Qxf8+ {[%clk 00:02:26]} {[%emt 00:00:16]} Kxf8 {[%clk 00:06:59]}
{[%emt 00:00:01]} 34. Kf2 {[%clk 00:02:30]} Ba4 {[%clk 00:06:48]} {[%emt
00:00:15]} 35. Bb1 {[%clk 00:02:26]} {[%emt 00:00:10]} Bb3 {[%clk 00:06:46]}
{[%emt 00:00:07]} 36. Ke3 {[%clk 00:02:17]} {[%emt 00:00:14]} Na4 {[%clk
00:06:48]} {[%emt 00:00:03]} 37. Kd2 {[%clk 00:02:20]} {[%emt 00:00:02]} Nxb2
{[%clk 00:06:51]} {[%emt 00:00:02]} 38. Nf1 {[%clk 00:02:23]} {[%emt 00:00:03]}
Na4 {[%clk 00:06:46]} {[%emt 00:00:10]} 39. Ne3 {[%clk 00:02:25]} {[%emt
00:00:03]} Nc5 {[%clk 00:06:46]} {[%emt 00:00:05]} 40. Ng4 {[%clk 00:02:27]}
{[%emt 00:00:03]} Kg7 {[%clk 00:06:27]} {[%emt 00:00:24]} 41. Kc1 {[%clk
00:02:20]} {[%emt 00:00:12]} h5 {[%clk 00:06:02]} {[%emt 00:00:30]} 42. Ne3
{[%clk 00:02:12]} {[%emt 00:00:13]} a5 {[%clk 00:05:57]} {[%emt 00:00:11]} 43.
Kb2 {[%clk 00:02:16]} {[%emt 00:00:01]} Na4+ {[%clk 00:05:56]} {[%emt
00:00:06]} 44. Ka3 {[%clk 00:02:04]} {[%emt 00:00:18]} Nxc3 {[%clk 00:05:59]}
{[%emt 00:00:02]} 45. Bc2 {[%clk 00:01:59]} {[%emt 00:00:09]} Bxc2 {[%clk
00:05:57]} {[%emt 00:00:07]} 46. Nxc2 {[%clk 00:02:03]} {[%emt 00:00:01]} Nxe4
{[%clk 00:06:00]} {[%emt 00:00:02]} 47. Ka4 {[%clk 00:02:08]} Nc3+ {[%clk
00:05:53]} {[%emt 00:00:13]} 48. Kxa5 {[%clk 00:02:09]} {[%emt 00:00:04]} Nxd5
{[%clk 00:05:56]} {[%emt 00:00:02]} 49. Kb5 {[%clk 00:02:13]} Nc7+ {[%clk
00:04:58]} {[%emt 00:01:03]} 50. Kxc4 {[%clk 00:02:15]} {[%emt 00:00:03]} Kf6
{[%clk 00:04:57]} {[%emt 00:00:06]} 51. Ne1 {[%clk 00:02:06]} {[%emt 00:00:14]}
Ke6 {[%clk 00:04:58]} {[%emt 00:00:05]} 52. Nf3 {[%clk 00:02:10]} {[%emt
00:00:01]} d5+ {[%clk 00:04:59]} {[%emt 00:00:04]} 53. Kc5 {[%clk 00:02:03]}
{[%emt 00:00:12]} Na6+ {[%clk 00:04:58]} {[%emt 00:00:05]} 54. Kb5 {[%clk
00:02:05]} {[%emt 00:00:02]} Nc7+ {[%clk 00:04:56]} {[%emt 00:00:08]} 55. Kc5
{[%clk 00:02:09]} {[%emt 00:00:01]} d4 {[%clk 00:04:45]} {[%emt 00:00:16]} 56.
Kc6 {[%clk 00:02:08]} {[%emt 00:00:06]} Ne8 {[%clk 00:04:42]} {[%emt 00:00:08]}
57. Kc5 {[%clk 00:02:12]} {[%emt 00:00:02]} Nf6 {[%clk 00:04:42]} {[%emt
00:00:05]} 58. Kc4 {[%clk 00:01:59]} {[%emt 00:00:18]} Ng4 {[%clk 00:04:38]}
{[%emt 00:00:07]} 59. Nh4 {[%clk 00:01:55]} {[%emt 00:00:10]} Ne3+ {[%clk
00:04:28]} {[%emt 00:00:15]} 60. Kd3 {[%clk 00:01:58]} {[%emt 00:00:01]} g5
{[%clk 00:04:26]} {[%emt 00:00:07]} 61. Nf3 {[%clk 00:02:01]} {[%emt 00:00:02]}
g4 {[%clk 00:04:16]} {[%emt 00:00:15]} 62. Nh4 {[%clk 00:01:57]} {[%emt
00:00:09]} Kd5 {[%clk 00:04:14]} {[%emt 00:00:08]} 63. h3 {[%clk 00:01:48]}
{[%emt 00:00:14]} Nxg2 {[%clk 00:03:37]} {[%emt 00:00:42]} 0-1